fUST/lending_fUST_20260109
["ID","MTS","AMOUNT","RATE_DAILY","PERIOD"]
[401090376,1767917440585,-336.0,0.00024454,3]
[401090377,1767917440595,-347.0,0.00024454,3]
[401090378,1767917440605,-152.0,0.00024454,3]
[401090379,1767917440614,-347.0,0.00024454,3]
[401090381,1767917440624,-152.0,0.00024454,3]
[401090383,1767917440634,-336.0,0.00024454,3]
[401090384,1767917440643,-284.0,0.00024454,3]
[401090385,1767917440653,-336.0,0.00024454,3]
[401090386,1767917440662,-347.0,0.00024454,3]
[401090387,1767917440671,-336.0,0.00024454,3]
[401090388,1767917440680,-347.0,0.00024454,3]
[401090389,1767917440690,-347.0,0.00024454,3]
[401090390,1767917440699,-347.0,0.00024454,3]
[401090391,1767917440709,-336.0,0.00024454,3]
[401090392,1767917440719,-347.0,0.00024454,3]
[401090393,1767917440729,-347.0,0.00024454,3]
[401090394,1767917440738,-336.0,0.00024454,3]
[401090395,1767917440748,-336.0,0.00024454,3]
[401090396,1767917440757,-347.0,0.00024454,3]
[401090397,1767917440766,-166.0,0.00024454,3]
[401090398,1767917440775,-347.0,0.00024454,3]
[401090399,1767917440785,-336.0,0.00024454,3]
[401090400,1767917440795,-166.0,0.00024454,3]
[401090401,1767917440805,-347.0,0.00024454,3]
[401090402,1767917440814,-336.0,0.00024454,3]
[401090403,1767917440824,-347.0,0.00024454,3]
[401090404,1767917440833,-336.0,0.00024454,3]
[401090405,1767917440843,-166.0,0.00024454,3]
[401090406,1767917440852,-347.0,0.00024454,3]
[401090407,1767917440861,-336.0,0.00024454,3]
[401090408,1767917440870,-151.0,0.00024454,3]
[401090409,1767917440880,-166.0,0.00024454,3]
[401090410,1767917440889,-347.0,0.00024454,3]
[401090412,1767917440899,-336.0,0.00024454,3]
[401090414,1767917440908,-151.0,0.00024454,3]
[401090416,1767917440917,-166.0,0.00024454,3]
[401090418,1767917440926,-347.0,0.00024454,3]
[401090420,1767917440935,-336.0,0.00024454,3]
[401090422,1767917440944,-151.0,0.00024454,3]
[401090424,1767917440954,-166.0,0.00024454,3]
[401090426,1767917440963,-347.0,0.00024454,3]
[401090428,1767917440972,-336.0,0.00024454,3]
[401090430,1767917440984,-151.0,0.00024454,3]
[401090431,1767917440998,-172.0,0.00024454,3]
[401090433,1767917441007,-347.0,0.00024454,3]
[401090435,1767917441017,-336.0,0.00024454,3]
[401090437,1767917441026,-151.0,0.00024454,3]
[401090440,1767917441037,-347.0,0.00024454,3]
[401090442,1767917441046,-336.0,0.00024454,3]
[401090444,1767917441055,-151.0,0.00024454,3]
[401090446,1767917441067,-347.0,0.00024454,3]
[401090448,1767917441079,-336.0,0.00024454,3]
[401090450,1767917441091,-151.0,0.00024454,3]
[401090453,1767917441103,-347.0,0.00024454,3]
[401090455,1767917441114,-336.0,0.00024454,3]
[401090457,1767917441126,-151.0,0.00024454,3]
[401090459,1767917441138,-347.0,0.00024454,3]
[401090462,1767917441148,-151.0,0.00024454,3]
[401090464,1767917441158,-347.0,0.00024454,3]
[401090466,1767917441169,-439.14173406,0.00024454,3]
[401090468,1767917441179,-151.0,0.00024454,3]
[401090470,1767917441190,-347.0,0.00024454,3]
[401090473,1767917441201,-336.0,0.00024454,3]
[401090475,1767917441212,-151.0,0.00024454,3]
[401090477,1767917441223,-347.0,0.00024454,3]
[401090479,1767917441235,-151.0,0.00024454,3]
[401090482,1767917441246,-347.0,0.00024454,3]
[401090484,1767917441257,-151.0,0.00024454,3]
[401090486,1767917441268,-151.0,0.00024454,3]
[401090488,1767917441279,-347.0,0.00024454,3]
[401090491,1767917441290,-151.0,0.00024454,3]
[401090493,1767917441301,-347.0,0.00024454,3]
[401090495,1767917441313,-151.0,0.00024454,3]
[401090497,1767917441324,-187.9115595,0.00024454,3]
[401090500,1767917441335,-376.65305407,0.00024454,3]
[401090502,1767917441346,-151.0,0.00024454,3]
[401090504,1767917441357,-153.05483042,0.00024454,3]
[401090506,1767917441369,-151.0,0.00024454,3]
[401090508,1767917441380,-151.0,0.00024454,3]
[401090511,1767917441390,-151.0,0.00024454,3]
[401090515,1767917441400,-151.0,0.00024454,3]
[401090518,1767917441411,-151.0,0.00024454,3]
[401090520,1767917441425,-151.0,0.00024454,3]
[401090522,1767917441437,-151.0,0.00024454,3]
[401090524,1767917441448,-151.0,0.00024454,3]
[401090526,1767917441458,-152.0,0.00024454,3]
[401090529,1767917441469,-152.0,0.00024454,3]
[401090531,1767917441478,-152.0,0.00024454,3]
[401090533,1767917441488,-152.0,0.00024454,3]
[401090535,1767917441498,-152.0,0.00024454,3]
[401090537,1767917441507,-152.0,0.00024454,3]
[401090539,1767917441518,-152.0,0.00024454,3]
[401090541,1767917441527,-152.0,0.00024454,3]
[401090543,1767917441537,-289.301333,0.00024454,3]
[401090545,1767917441548,-152.0,0.00024454,3]
[401090548,1767917441559,-152.0,0.00024454,3]
[401090550,1767917441571,-6890.6010809,0.00024456,2]
[401090552,1767917441581,-16648.99,0.000245,2]
[401090553,1767917441592,-2566.24195815,0.0002479,2]
[401090554,1767917441603,-32392.2300656,0.000248,2]
[401090555,1767917441614,-151.0,0.000248,7]
[401090556,1767917441626,-151.0,0.000248,7]
[401090557,1767917441637,-151.0,0.000248,7]
[401090558,1767917441648,-151.0,0.000248,7]
[401090559,1767917441660,-151.0,0.000248,7]
[401090560,1767917441671,-154.36524,0.000248,7]
[401090561,1767917441682,-151.0,0.000248,7]
[401090562,1767917441693,-9254.92287588,0.0002488,2]
[401090563,1767917441703,-151.0,0.0002489,7]
[401090564,1767917441712,-296.920538,0.0002489,7]
[401090565,1767917441721,-296.920538,0.0002489,7]
[401090566,1767917441731,-296.920538,0.0002489,7]
[401090567,1767917441741,-296.920538,0.0002489,7]
[401090568,1767917441751,-4627.46143794,0.0002489,2]
[401090569,1767917441761,-167.4,0.000249,7]
[401090570,1767917441773,-1041.66666667,0.000249,3]
[401090571,1767917441784,-264.224,0.000249,7]
[401090572,1767917441796,-264.224,0.000249,7]
[401090573,1767917441808,-264.224,0.000249,7]
[401090574,1767917441820,-264.224,0.000249,7]
[401090575,1767917441830,-151.0,0.000249,7]
[401090576,1767917441840,-151.0,0.000249,7]
[401090577,1767917441851,-151.0,0.000249,7]
[401090578,1767917441863,-151.0,0.000249,7]
[401090579,1767917441873,-151.0,0.000249,7]
[401090580,1767917441885,-151.0,0.000249,7]
[401090581,1767917441896,-151.0,0.000249,7]
[401090582,1767917441907,-151.0,0.000249,7]
[401090583,1767917441919,-298.474692,0.000249,7]
[401090584,1767917441929,-151.0,0.000249,7]
[401090585,1767917441939,-288.938246,0.000249,7]
[401090586,1767917441950,-3683.85552,0.000249,7]
[401090587,1767917441960,-3683.85552,0.000249,7]
[401090588,1767917441971,-3683.85552,0.000249,7]
[401090589,1767917441981,-151.0,0.000249,7]
[401090590,1767917441994,-3683.85552,0.000249,7]
[401090591,1767917442004,-151.0,0.000249,7]
[401090592,1767917442014,-232.721507,0.000249,7]
[401090593,1767917442024,-151.0,0.000249,7]
[401090594,1767917442035,-151.0,0.000249,7]
[401090595,1767917442045,-151.0,0.000249,7]
[401090596,1767917442055,-151.0,0.000249,7]
[401090597,1767917442065,-151.0,0.000249,7]
[401090598,1767917442077,-151.0,0.000249,7]
[401090599,1767917442088,-151.0,0.000249,7]
[401090600,1767917442098,-465.027669,0.000249,7]
[401090601,1767917442109,-465.027669,0.000249,7]
[401090602,1767917442120,-465.027669,0.000249,7]
[401090603,1767917442130,-465.027669,0.000249,7]
[401090604,1767917442140,-210.013186,0.000249,7]
[401090605,1767917442150,-151.0,0.000249,7]
[401090606,1767917442160,-151.0,0.000249,7]
[401090607,1767917442172,-625.10994,0.000249,7]
[401090608,1767917442182,-625.10994,0.000249,7]
[401090609,1767917442193,-625.10994,0.000249,7]
[401090610,1767917442203,-625.10994,0.000249,7]
[401090611,1767917442215,-151.0,0.000249,7]
[401090612,1767917442225,-151.0,0.000249,7]
[401090613,1767917442237,-218.447401,0.000249,7]
[401090614,1767917442247,-218.447401,0.000249,7]
[401090615,1767917442259,-218.447401,0.000249,7]
[401090616,1767917442270,-218.447401,0.000249,7]
[401090617,1767917442280,-218.447401,0.000249,7]
[401090618,1767917442290,-218.447401,0.000249,7]
[401090619,1767917442301,-218.447401,0.000249,7]
[401090620,1767917442311,-218.447401,0.000249,7]
[401090621,1767917442322,-151.0,0.000249,7]
[401090622,1767917442332,-151.0,0.000249,7]
[401090623,1767917442342,-151.0,0.000249,7]
[401090624,1767917442352,-151.0,0.000249,7]
[401090625,1767917442362,-189.075092,0.000249,7]
[401090626,1767917442374,-189.075092,0.000249,7]
[401090627,1767917442385,-189.075092,0.000249,7]
[401090628,1767917442395,-189.075092,0.000249,7]
[401090629,1767917442406,-189.075092,0.000249,7]
[401090630,1767917442418,-189.075092,0.000249,7]
[401090631,1767917442430,-189.075092,0.000249,7]
[401090632,1767917442440,-189.075092,0.000249,7]
[401090633,1767917442452,-310.474251,0.000249,7]
[401090634,1767917442464,-310.474251,0.000249,7]
[401090635,1767917442475,-310.474251,0.000249,7]
[401090636,1767917442487,-310.474251,0.000249,7]
[401090637,1767917442499,-310.474251,0.000249,7]
[401090638,1767917442510,-310.474251,0.000249,7]
[401090639,1767917442520,-978.076784,0.000249,7]
[401090640,1767917442531,-978.076784,0.000249,7]
[401090641,1767917442541,-310.474251,0.000249,7]
[401090642,1767917442552,-310.474251,0.000249,7]
[401090643,1767917442562,-151.0,0.000249,7]
[401090644,1767917442572,-151.0,0.000249,7]
[401090645,1767917442582,-978.076784,0.000249,7]
[401090646,1767917442593,-978.076784,0.000249,7]
[401090647,1767917442603,-151.0,0.000249,7]
[401090648,1767917442613,-151.0,0.000249,7]
[401090649,1767917442624,-978.076784,0.000249,7]
[401090650,1767917442635,-978.076784,0.000249,7]
[401090651,1767917442645,-184.679172,0.000249,7]
[401090652,1767917442657,-978.076784,0.000249,7]
[401090653,1767917442667,-978.076784,0.000249,7]
[401090654,1767917442677,-152.763427,0.000249,7]
[401090655,1767917442687,-296.920538,0.000249,7]
[401090656,1767917442698,-296.920538,0.000249,7]
[401090657,1767917442709,-296.920538,0.000249,7]
[401090658,1767917442720,-296.920538,0.000249,7]
[401090659,1767917442730,-16812.2271346,0.000249,2]
[401090660,1767917442741,-151.0,0.000249,7]
[401090661,1767917442752,-151.0,0.000249,7]
[401090662,1767917442763,-151.0,0.000249,7]
[401090663,1767917442773,-446.0,0.00024932,7]
[401090664,1767917442784,-446.0,0.00025,7]
[401090665,1767917442795,-159.03608341,0.00025123,92]
[401090666,1767917442808,-217.6,0.00025129,2]
[401090667,1767917442818,-205.54091976,0.0002517,94]
[401090668,1767917442829,-1041.66666667,0.00025205,7]
[401090669,1767917442839,-250.0,0.00025205,2]
[401090670,1767917442850,-151.0,0.00025269,2]
[401090671,1767917442861,-1093.27707489,0.00025269,2]
[401090672,1767917442872,-151.0,0.00025269,2]
[401090673,1767917442882,-151.0,0.00025269,2]
[401090674,1767917442893,-151.0,0.00025269,2]
[401090675,1767917443112,-250.0,0.00025269,2]
[401090676,1767917443131,-250.0,0.00025269,2]
[401090677,1767917443140,-151.0,0.00025269,2]
[401090678,1767917443150,-250.0,0.00025269,2]
[401090679,1767917443159,-478.75725327,0.00025269,2]
[401090680,1767917443168,-151.0,0.00025269,2]
[401090681,1767917443177,-250.0,0.00025269,2]
[401090682,1767917443186,-250.0,0.00025269,2]
[401090683,1767917443196,-250.0,0.00025269,2]
[401090684,1767917443206,-151.0,0.00025269,2]
[401090685,1767917443215,-250.0,0.00025269,2]
[401090686,1767917443224,-250.0,0.00025269,2]
[401090687,1767917443234,-1500.0,0.00025269,2]
[401090688,1767917443245,-250.0,0.00025269,2]
[401090690,1767917443254,-151.0,0.00025269,2]
[401090692,1767917443264,-250.0,0.00025269,2]
[401090693,1767917443274,-1500.0,0.00025269,2]
[401090695,1767917443283,-151.0,0.00025269,2]
[401090697,1767917443292,-250.0,0.00025269,2]
[401090698,1767917443301,-151.0,0.00025269,2]
[401090700,1767917443311,-250.0,0.00025269,2]
[401090702,1767917443320,-1500.0,0.00025269,2]
[401090704,1767917443330,-151.0,0.00025269,2]
[401090706,1767917443339,-250.0,0.00025269,2]
[401090708,1767917443348,-151.0,0.00025269,2]
[401090710,1767917443357,-250.0,0.00025269,2]
[401090712,1767917443366,-1500.0,0.00025269,2]
[401090714,1767917443375,-151.0,0.00025269,2]
[401090715,1767917443384,-250.0,0.00025269,2]
[401090716,1767917443392,-250.0,0.00025269,2]
[401090717,1767917443401,-151.0,0.00025269,2]
[401090718,1767917443410,-1500.0,0.00025269,2]
[401090719,1767917443419,-151.0,0.00025269,2]
[401090720,1767917443427,-250.0,0.00025269,2]
[401090721,1767917443436,-250.0,0.00025269,2]
[401090722,1767917443446,-151.0,0.00025269,2]
[401090723,1767917443456,-1500.0,0.00025269,2]
[401090724,1767917443465,-250.0,0.00025269,2]
[401090725,1767917443475,-250.0,0.00025269,2]
[401090726,1767917443484,-151.0,0.00025269,2]
[401090727,1767917443493,-151.0,0.00025269,2]
[401090728,1767917443502,-1500.0,0.00025269,2]
[401090729,1767917443511,-250.0,0.00025269,2]
[401090730,1767917443520,-250.0,0.00025269,2]
[401090731,1767917443529,-151.0,0.00025269,2]
[401090732,1767917443538,-151.0,0.00025269,2]
[401090733,1767917443547,-1271.89158797,0.00025269,2]
[401090734,1767917443556,-2312.83697232,0.00025269,2]
[401090735,1767917443566,-250.0,0.00025269,2]
[401090736,1767917443575,-305.03589373,0.00025269,2]
[401090737,1767917443584,-151.0,0.00025269,2]
[401090738,1767917443593,-151.0,0.00025269,2]
[401090739,1767917443603,-250.0,0.00025269,2]
[401090740,1767917443612,-151.0,0.00025269,2]
[401090741,1767917443621,-151.0,0.00025269,2]
[401090742,1767917443630,-250.0,0.00025269,2]
[401090743,1767917443639,-151.0,0.00025269,2]
[401090744,1767917443650,-151.0,0.00025269,2]
[401090745,1767917443661,-151.0,0.00025269,2]
[401090746,1767917443670,-151.0,0.00025269,2]
[401090747,1767917443679,-151.0,0.00025269,2]
[401090748,1767917443688,-250.0,0.00025269,2]
[401090749,1767917443697,-151.0,0.00025269,2]
[401090750,1767917443706,-151.0,0.00025269,2]
[401090751,1767917443716,-151.15345632,0.00025269,2]
[401090752,1767917443725,-151.0,0.00025269,2]
[401090753,1767917443734,-250.0,0.00025269,2]
[401090754,1767917443743,-151.0,0.00025269,2]
[401090755,1767917443757,-151.0,0.00025269,2]
[401090756,1767917443767,-250.0,0.00025269,2]
[401090757,1767917443776,-311.1,0.00025269,2]
[401090758,1767917443785,-204.04740032,0.00025269,2]
[401090759,1767917443795,-250.0,0.00025269,2]
[401090760,1767917443804,-250.0,0.00025269,2]
[401090761,1767917443813,-250.0,0.00025269,2]
[401090762,1767917443824,-250.0,0.00025269,2]
[401090763,1767917443833,-250.0,0.00025269,2]
[401090764,1767917443843,-250.0,0.00025269,2]
[401090765,1767917443853,-250.0,0.00025269,2]
[401090766,1767917443863,-250.0,0.00025269,2]
[401090767,1767917443876,-500.0,0.00025269,2]
[401090768,1767917443885,-500.0,0.00025269,2]
[401090769,1767917443895,-500.0,0.00025269,2]
[401090770,1767917443904,-500.0,0.00025269,2]
[401090771,1767917443913,-250.0,0.00025269,2]
[401090772,1767917443923,-609.47325435,0.00025269,2]
[401090773,1767917443932,-2030.296672,0.00025269,2]
[401090774,1767917443941,-250.0,0.00025269,2]
[401090775,1767917443951,-30000.0,0.00025269,2]
[401090776,1767917443960,-250.0,0.00025269,2]
[401090777,1767917443970,-250.0,0.00025269,2]
[401090778,1767917443979,-250.0,0.00025269,2]
[401090779,1767917443989,-174.61919141,0.00025269,2]
[401090780,1767917443999,-253.179,0.00025275,9]
[401090781,1767917444008,-2105.41764886,0.00025324,2]
[401090782,1767917444017,-2183.31810187,0.00025379,2]
[401090783,1767917444027,-376.9815269,0.00025424,2]
[401090784,1767917444037,-2264.10087164,0.00025434,2]
[401090785,1767917444046,-165.11814564,0.00025453,110]
[401090786,1767917444056,-159.03608341,0.00025453,110]
[401090787,1767917444065,-205.54091976,0.00025453,110]
[401090788,1767917444075,-2347.87260389,0.00025489,2]
[401090789,1767917444092,-160.18626186,0.00025525,2]
[401090790,1767917444102,-2434.74389024,0.00025544,2]
[401090791,1767917444111,-1369.47464648,0.00025599,2]
[401090792,1767917444120,-449.63,0.000256,2]
[401090793,1767917444130,-1041.66666667,0.000256,7]
[401090794,1767917444140,-434.71655452,0.00025715,2]
[401090795,1767917444150,-613.21155226,0.00025739,2]
[401090796,1767917444159,-350.0,0.00025753,2]
[401090797,1767917444168,-496.47127164,0.00025817,2]
[401090798,1767917444178,-2398.4119403,0.00025817,2]
[401090799,1767917444187,-151.0,0.00025817,2]
[401090800,1767917444196,-31110.0,0.00025817,2]
[401090801,1767917444206,-446.0,0.0002589,7]
[401090802,1767917444215,-1552.0,0.00025941,2]
[401090803,1767917444224,-19900.0,0.00026,2]
[401090804,1767917444233,-161.0,0.00026,5]
[401090805,1767917444242,-16648.99,0.00026,2]
[401090806,1767917444251,-814.35,0.00026,14]
[401090807,1767917444260,-1551.0,0.00026064,7]
[401090808,1767917444269,-347.0,0.0002615,3]
[401090809,1767917444278,-151.0,0.0002615,3]
[401090810,1767917444287,-151.0,0.0002615,3]
[401090811,1767917444296,-151.0,0.0002615,3]
[401090812,1767917444305,-336.0,0.0002615,3]
[401090813,1767917444314,-151.0,0.0002615,3]
[401090814,1767917444324,-151.0,0.0002615,3]
[401090815,1767917444333,-336.0,0.0002615,3]
[401090816,1767917444343,-151.0,0.0002615,3]
[401090817,1767917444353,-336.0,0.0002615,3]
[401090818,1767917444362,-302.0,0.0002615,3]
[401090819,1767917444371,-336.0,0.0002615,3]
[401090820,1767917444380,-194.59744594,0.0002616,2]
[401090821,1767917444390,-1551.0,0.0002617,2]
[401090822,1767917444399,-376.9815269,0.00026192,2]
[401090823,1767917444408,-376.9815269,0.00026192,2]
[401090824,1767917444418,-376.9815269,0.00026192,2]
[401090825,1767917444428,-376.9815269,0.00026192,2]
[401090826,1767917444437,-1000.0,0.00026218,30]
[401090827,1767917444446,-1000.0,0.00026218,30]
[401090828,1767917444456,-579.0,0.00026218,30]
[401090829,1767917444467,-217.6,0.00026285,2]
[401090830,1767917444476,-450.0,0.00026301,2]
[401090831,1767917444486,-900.0,0.00026307,7]
[401090832,1767917444496,-151.0,0.00026323,7]
[401090833,1767917444505,-153.670085,0.00026323,7]
[401090834,1767917444514,-218.447401,0.00026323,7]
[401090835,1767917444523,-218.447401,0.00026323,7]
[401090836,1767917444532,-218.447401,0.00026323,7]
[401090837,1767917444542,-218.447401,0.00026323,7]
[401090839,1767917444551,-296.920538,0.00026323,7]
[401090841,1767917444560,-296.920538,0.00026323,7]
[401090842,1767917444569,-296.920538,0.00026323,7]
[401090843,1767917444578,-296.920538,0.00026323,7]
[401090844,1767917444588,-151.0,0.00026323,7]
[401090846,1767917444597,-151.0,0.00026323,7]
[401090847,1767917444607,-151.0,0.00026323,7]
[401090848,1767917444616,-151.0,0.00026323,7]
[401090849,1767917444625,-151.0,0.00026323,7]
[401090850,1767917444635,-202.995975,0.00026323,7]
[401090851,1767917444645,-151.0,0.00026323,7]
[401090852,1767917444654,-151.0,0.00026323,7]
[401090853,1767917444663,-151.0,0.00026323,7]
[401090854,1767917444672,-160.14587,0.00026365,7]
[401090855,1767917444681,-3683.85552,0.00026365,7]
[401090856,1767917444690,-3683.85552,0.00026365,7]
[401090858,1767917444700,-3683.85552,0.00026365,7]
[401090860,1767917444709,-151.0,0.00026365,7]
[401090861,1767917444718,-3683.85552,0.00026365,7]
[401090862,1767917444728,-151.0,0.00026365,7]
[401090863,1767917444737,-151.0,0.00026365,7]
[401090864,1767917444747,-151.0,0.00026365,7]
[401090865,1767917444756,-151.0,0.00026365,7]
[401090866,1767917444766,-151.0,0.00026365,7]
[401090867,1767917444776,-152.589858,0.00026365,7]
[401090868,1767917444785,-177.622623,0.00026365,7]
[401090869,1767917444795,-465.027669,0.00026365,7]
[401090870,1767917444804,-465.027669,0.00026365,7]
[401090871,1767917444815,-465.027669,0.00026365,7]
[401090872,1767917444825,-465.027669,0.00026365,7]
[401090873,1767917444837,-151.0,0.00026365,7]
[401090874,1767917444847,-625.10994,0.00026365,7]
[401090875,1767917444856,-625.10994,0.00026365,7]
[401090876,1767917444867,-625.10994,0.00026365,7]
[401090877,1767917444876,-625.10994,0.00026365,7]
[401090878,1767917444885,-3329.61738907,0.00026365,7]
[401090879,1767917444895,-151.0,0.00026365,7]
[401090880,1767917444904,-151.0,0.00026365,7]
[401090881,1767917444914,-189.075092,0.00026365,7]
[401090882,1767917444923,-189.075092,0.00026365,7]
[401090883,1767917444932,-189.075092,0.00026365,7]
[401090884,1767917444942,-189.075092,0.00026365,7]
[401090885,1767917444951,-310.474251,0.00026365,7]
[401090886,1767917444961,-310.474251,0.00026365,7]
[401090887,1767917444970,-310.474251,0.00026365,7]
[401090888,1767917444980,-978.076784,0.00026365,7]
[401090889,1767917444991,-310.474251,0.00026365,7]
[401090890,1767917445000,-151.0,0.00026365,7]
[401090891,1767917445010,-978.076784,0.00026365,7]
[401090892,1767917445020,-151.0,0.00026365,7]
[401090893,1767917445030,-978.076784,0.00026365,7]
[401090894,1767917445040,-978.076784,0.00026365,7]
[401090895,1767917445050,-514.84070869,0.00026365,2]
[401090896,1767917445060,-2487.15318209,0.00026365,2]
[401090897,1767917445080,-151.0,0.00026365,2]
[401090898,1767917445089,-32261.07,0.00026365,2]
[401090899,1767917445098,-753.9630538,0.00026383,2]
[401090900,1767917445107,-900.0,0.00026453,7]
[401090901,1767917445116,-900.0,0.00026513,7]
[401090902,1767917445125,-200.0,0.0002654,14]
[401090903,1767917445135,-264.224,0.00026592,7]
[401090904,1767917445144,-264.224,0.00026592,7]
[401090905,1767917445153,-264.224,0.00026592,7]
[401090906,1767917445162,-264.224,0.00026592,7]
[401090907,1767917445171,-151.0,0.00026592,7]
[401090908,1767917445181,-151.0,0.00026592,7]
[401090909,1767917445190,-151.0,0.00026592,7]
[401090910,1767917445200,-151.0,0.00026592,7]
[401090911,1767917445209,-151.0,0.00026592,7]
[401090912,1767917445218,-151.0,0.00026592,7]
[401090913,1767917445227,-151.0,0.00026592,7]
[401090914,1767917445237,-151.0,0.00026592,7]
[401090915,1767917445246,-151.0,0.00026592,7]
[401090916,1767917445256,-151.0,0.00026592,7]
[401090917,1767917445266,-151.0,0.00026592,7]
[401090918,1767917445275,-151.0,0.00026592,7]
[401090919,1767917445284,-151.0,0.00026592,7]
[401090920,1767917445293,-151.0,0.00026592,7]
[401090921,1767917445303,-1041.66666667,0.000266,7]
[401090922,1767917445312,-180.03780794,0.00026622,2]
[401090923,1767917445321,-322.6107,0.00026638,2]
[401090924,1767917445330,-181.08010149,0.00026638,2]
[401090925,1767917445339,-900.0,0.00026644,7]
[401090926,1767917445348,-155.0,0.00026658,21]
[401090927,1767917445358,-1549.0,0.00026684,7]
[401090928,1767917445367,-5000.0,0.00026746,2]
[401090929,1767917445377,-500.0,0.0002676,7]
[401090930,1767917445386,-2566.24195812,0.00026785,2]
[401090931,1767917445396,-1549.0,0.00026808,2]
[401090932,1767917445405,-1460.218623,0.00026822,2]
[401090933,1767917445415,-313.3645822,0.00026822,2]
[401090934,1767917445425,-195.51554,0.00026822,2]
[401090935,1767917445435,-1282.0301743,0.00026822,2]
[401090936,1767917445444,-9669.30580798,0.00026847,2]
[401090937,1767917445453,-550.0,0.00026849,2]
[401090938,1767917445462,-449.63,0.000269,2]
[401090939,1767917445471,-777.0,0.000269,2]
[401090940,1767917445480,-554.95289818,0.00026908,13]
[401090941,1767917445490,-533.88981491,0.00026913,2]
[401090942,1767917445499,-2579.17784983,0.00026913,2]
[401090943,1767917445508,-151.0,0.00026913,2]
[401090944,1767917445518,-33454.72959,0.00026913,2]
[401090945,1767917445527,-1549.0,0.00026916,2]
[401090946,1767917445536,-1766.13018199,0.00027,2]
[401090947,1767917445545,-600.0,0.00027,14]
[401090948,1767917445554,-75040.16705244,0.00027,30]
[401090949,1767917445564,-1041.66666667,0.00027,30]
[401090950,1767917445573,-3683.85552,0.00027,7]
[401090951,1767917445583,-3683.85552,0.00027,7]
[401090952,1767917445592,-3683.85552,0.00027,7]
[401090953,1767917445601,-151.0,0.00027,7]
[401090954,1767917445610,-3683.85552,0.00027,7]
[401090955,1767917445619,-151.0,0.00027,7]
[401090956,1767917445628,-151.0,0.00027,7]
[401090957,1767917445637,-264.296067,0.00027,7]
[401090958,1767917445647,-465.027669,0.00027,7]
[401090959,1767917445657,-465.027669,0.00027,7]
[401090960,1767917445667,-465.027669,0.00027,7]
[401090961,1767917445676,-465.027669,0.00027,7]
[401090962,1767917445685,-151.0,0.00027,7]
[401090963,1767917445695,-625.10994,0.00027,7]
[401090964,1767917445704,-625.10994,0.00027,7]
[401090965,1767917445713,-625.10994,0.00027,7]
[401090966,1767917445723,-625.10994,0.00027,7]
[401090967,1767917445733,-151.0,0.00027,7]
[401090968,1767917445742,-218.447401,0.00027,7]
[401090969,1767917445752,-218.447401,0.00027,7]
[401090970,1767917445761,-218.447401,0.00027,7]
[401090971,1767917445773,-218.447401,0.00027,7]